Cogmind - Beta 16.1 @@@ ROGUE MODE // 2026.02.28 @ 21:06:45 Player: Kakograf Result: Self-destructed Performance ------------- Evolutions (2) 1000 Regions Visited (5) 1000 Robots Destroyed (43) 215 Value Destroyed (1432) 1432 Prototype IDs (1) 20 Alien Tech Used (0) 0 Bonus (200) 200 TOTAL SCORE: 3867 Bonus ------- Entered Garrisons 200 Cogmind --------- Core Integrity 57/550 Matter 290/300 Energy 100/100 System Corruption 0% Temperature Cool (0) Movement Core (100) Ox1 Location -8/Garrison Parts ------- > --- POWER (2) -------- (None) > --- PROPULSION (2) --- (None) > --- UTILITY (4) ------ (None) > --- WEAPON (3) ------- Faulty Advanced Beam Cannon > --- INVENTORY (5) ---- Heavy Ion Engine Aluminum Leg Aluminum Leg Cooling System Peak State ------------ > --- POWER ------------ Improved Ion Engine Light Nuclear Core > --- PROPULSION ------- Light Treads Light Treads > --- UTILITY ---------- Medium Storage Unit Visual Processing Unit Sensor Array Signal Interpreter > --- WEAPON ----------- Spread Laser Spread Laser Advanced Beam Cannon > --- INVENTORY -------- Heavy Ion Engine Deuterium Engine Armored Treads Aluminum Leg Aluminum Leg Improved Heat Sink Cooling System Shield Generator Spread Laser Advanced Beam Cannon [Rating: 21] Favorites ----------- Power Ion Engine Engine Ion Engine Power Core Light Nuclear Core Propulsion Aluminum Leg Treads Light Treads Leg Aluminum Leg Utility Signal Interpreter Device Sensor Array Storage Small Storage Unit Processor Signal Interpreter Weapon Spread Laser Energy Gun Spread Laser Energy Cannon Advanced Beam Cannon Ballistic Gun Autogun Launcher Grenade Launcher Build | -11 -10 -9 -9 -8 -8 ------- Run | Yrd Mat Mat Min Mat Gar Slots Evolved 4 | . . 2 . 2 . Power 1 | . . . . 1 . Propulsion . | . . . . . . Utility 2 | . . 2 . . . Weapon 1 | . . . . 1 . Parts Attached 39 | 6 5 13 . 4 11 Power 6 | 1 1 1 . 1 2 Engine 5 | 1 1 1 . . 2 Core 1 | . . . . 1 . Reactor . | . . . . . . Propulsion 11 | 2 2 4 . . 3 Treads 3 | . . 2 . . 1 Leg 8 | 2 2 2 . . 2 Wheel . | . . . . . . Hover . | . . . . . . Flight . | . . . . . . Utility 9 | 1 1 5 . . 2 Device 4 | . 1 1 . . 2 Storage 2 | 1 . 1 . . . Processor 3 | . . 3 . . . Hackware . | . . . . . . Protection . | . . . . . . Artifact . | . . . . . . Weapon 13 | 2 1 3 . 3 4 Energy Gun 6 | 1 . 1 . 3 1 Energy Cannon 2 | . . . . . 2 Ballistic Gun 3 | 1 . 1 . . 1 Ballistic Cannon . | . . . . . . Launcher 2 | . 1 1 . . . Special Weapon . | . . . . . . Impact Weapon . | . . . . . . Slashing Weapon . | . . . . . . Piercing Weapon . | . . . . . . Special Melee Weapon . | . . . . . . Unidentified Prototypes 1 | . . . . . 1 Parts Lost 22 | . 1 7 . . 14 Power 6 | . 1 1 . . 4 Propulsion 5 | . . 2 . . 3 Utility 2 | . . . . . 2 Weapon 9 | . . 4 . . 5 Highest Loss Streak 8 | . 1 4 . . 8 To Critical Strikes . | . . . . . . Average Backups 7 | 2 5 7 10 9 7 Power 1 | . 1 1 2 1 1 Propulsion 2 | 1 2 2 2 2 2 Utility 1 | . . 2 3 3 2 Weapon 1 | . 1 2 3 2 1 Tool/Special . | . . . . . . Unused Backups 6 | . 2 2 . . 2 Power 2 | . 1 . . . 1 Propulsion . | . . . . . . Utility 1 | . . . . . 1 Weapon 3 | . 1 2 . . . Tool/Special . | . . . . . . Average Slot Usage (%) 89 | . 97 94 88 91 76 Engine 9 | . 13 9 11 9 7 Core 1 | . . . . 7 4 Treads 7 | . . 6 22 18 10 Leg 11 | . 28 12 . . 1 Device 10 | . 11 11 11 9 8 Storage 10 | . 14 11 11 9 8 Processor 15 | . . 21 22 18 16 Energy Gun 12 | . 14 8 . 18 14 Ballistic Gun 6 | . 11 6 11 1 2 Launcher 3 | . 2 6 . . . Peak Build Rating 21 | 6 8 14 13 20 21 Average Rating 12 | 4 7 11 13 18 16 On Entrance 10 | . 6 8 13 13 20 Avg Prop Armor Cover (%) . | . . . . . . Naked Turns 48 | . . . . . 48 Heaviest Build 33 | 14 16 24 21 32 33 Greatest Support 40 | 20 20 40 40 40 40 Greatest Overweight (x) 5 | 1 1 1 . . 5 Average Overweight (x) . | . . . . . . Largest Inventory Capacity 10 | 8 8 10 10 10 10 Average Capacity 8 | 6 8 8 10 10 9 Most Carried 10 | 3 8 10 10 10 10 Average Carried 7 | 2 5 7 10 9 7 Final Capacity 10 | 8 8 10 10 10 5 Final Carried 10 | 3 8 10 10 10 4 Class Distribution -------------------- 41% | Scavenger-Skirmisher 28% | Mutant 16% | Skirmisher 14% | Scavenger-Mutant Dominant Class ---------------- Mutant | -10/Materials Scavenger-Skirmisher | -9/Materials Mutant | -9/Mines Scavenger-Skirmisher | -8/Materials Scavenger-Skirmisher | -8/Garrison Resources | -11 -10 -9 -9 -8 -8 ----------- Run | Yrd Mat Mat Min Mat Gar Matter Collected 993 | 227 176 335 . . 255 Remotely . | . . . . . . Salvage Created 1267 | . 296 735 . . 236 Parts 81 | . 25 41 . . 15 Haulers Intercepted 1 | . . 1 . . . Recyclers Shooed 1 | . . 1 . . . Parts Field Recycled . | . . . . . . Retrieved Matter . | . . . . . . Parts Self-Destructed . | . . . . . . Prevented . | . . . . . . Parts Restored . | . . . . . . Kills | -11 -10 -9 -9 -8 -8 ------- Run | Yrd Mat Mat Min Mat Gar Combat Hostiles Destroyed 36 | . 7 20 . . 9 Melee 1 | . . . . . 1 Guns 25 | . 5 12 . . 8 AOE 10 | . 2 8 . . . Classes Destroyed 10 | . 3 5 . . 2 Builder 1 | . 1 . . . . Hauler 1 | . . 1 . . . Recycler 1 | . . 1 . . . Watcher 4 | . 1 3 . . . Swarmer 10 | . . 7 . . 3 Grunt 22 | . 7 11 . . 4 Brawler 1 | . . 1 . . . Sentry 1 | . . 1 . . . Specialist 1 | . . . . . 1 Hunter 1 | . . . . . 1 Best Kill Streak 8 | . 3 8 . . 3 Combat Bots Only 6 | . 2 6 . . 3 Max Kills in Single Turn 3 | . 3 3 . . 2 Gunslinging 1 | . . . . . 1 Exploded 2 | . 2 2 . . . Melee 1 | . . . . . 1 Uniques/NPCs Destroyed . | . . . . . . Combat | -11 -10 -9 -9 -8 -8 -------- Run | Yrd Mat Mat Min Mat Gar Hostile Shots Fired 372 | . 40 112 . . 220 Missed 104 | . 5 34 . . 65 Hits 268 | . 35 78 . . 155 Melee 2 | . . 2 . . . Projectile 266 | . 35 76 . . 155 Critical Strikes 10 | . 2 3 . . 5 Damage Taken 3254 | . 415 898 . . 1941 Core 715 | . 79 143 . . 493 Absorbed by Shields 153 | . . . . . 153 Core Remaining (%) 77 | 100 68 . 64 . . Volleys Fired 128 | . 27 54 . . 47 Largest 3 | . 2 2 . . 3 Hottest 195 | . 80 90 . . 195 Shots Fired 211 | . 53 82 . . 76 Gun 179 | . 50 67 . . 62 Cannon 14 | . . . . . 14 Launcher 18 | . 3 15 . . . Special . | . . . . . . Kinetic 72 | . 24 29 . . 19 Thermal 121 | . 26 38 . . 57 Explosive 18 | . 3 15 . . . Electromagnetic . | . . . . . . Robot Hit Streak 15 | . 10 11 . . 15 Robot Miss Streak 4 | . 1 2 . . 4 Penetration Max . | . . . . . . Secondary Targets 4 | . . 2 . . 2 Max Gunslinging Chain 1 | . . 1 . . 1 Shots Hit Robots 148 | . 38 56 . . 54 Core Hits 113 | . 19 45 . . 49 Critical Kills . | . . . . . . Critical Parts Destroyed . | . . . . . . Critical Strikes 3 | . . 2 . . 1 Burn 3 | . . 2 . . 1 Melee Attacks . | . . . . . . Impact . | . . . . . . Slashing . | . . . . . . Piercing . | . . . . . . Sneak Attacks . | . . . . . . Combat Hostiles . | . . . . . . Follow-up Attacks . | . . . . . . Damage Inflicted 2886 | . 647 1413 . . 826 Guns 1856 | . 483 669 . . 704 Cannons 103 | . . . . . 103 Explosions 893 | . 161 732 . . . Melee . | . . . . . . Ramming 34 | . 3 12 . . 19 Kinetic 846 | . 248 318 . . 280 Thermal 1113 | . 235 351 . . 527 Explosive 893 | . 161 732 . . . Electromagnetic . | . . . . . . Impact . | . . . . . . Slashing . | . . . . . . Piercing . | . . . . . . Highest Corruption . | . . . . . . Average Corruption . | . . . . . . Corruption Purged . | . . . . . . Corruption Blocked . | . . . . . . Overload Shots . | . . . . . . Overflow Damage 15 | . . 15 . . . Projectiles . | . . . . . . Explosions 15 | . . 15 . . . Melee . | . . . . . . Knockbacks . | . . . . . . Impact . | . . . . . . Kinetic . | . . . . . . Secondary . | . . . . . . Self-Inflicted Damage 3 | . . . . . 3 Shots . | . . . . . . Rammed 8 | . . 3 . . 5 Targets Rammed 15 | . 1 3 . . 11 Kicked 7 | . 1 . . . 6 Crushed . | . . . . . . Highest Temperature 453 | . 138 112 . . 453 Average Temperature 99 | . 59 37 . . 152 Received Heat Transfer 1249 | . 267 360 . . 622 Effects 3 | . . . . . 3 Shutdowns 2 | . . . . . 2 Energy Bleed 1 | . . . . . 1 Siege Activations . | . . . . . . Martial Activations . | . . . . . . Shielding Activations . | . . . . . . Robots Disrupted . | . . . . . . Combat Hostiles . | . . . . . . Robots Corrupted . | . . . . . . Combat Hostiles . | . . . . . . Parts Fried . | . . . . . . Impact Corruptions . | . . . . . . Robots Melted . | . . . . . . Combat Hostiles . | . . . . . . Parts Melted 3 | . 1 1 . . 1 Heat Transferred 2686 | . 703 1137 . . 846 Parts Sabotaged . | . . . . . . Parts Stolen . | . . . . . . Parts Stripped . | . . . . . . Power Chain Reactions . | . . . . . . Alert | -11 -10 -9 -9 -8 -8 ------- Run | Yrd Mat Mat Min Mat Gar Maximum Alert Level 1 | . . 1 . . . Low Security (%) 93 | 100 100 83 100 100 100 Level 1 6 | . . 16 . . . Level 2 . | . . . . . . Level 3 . | . . . . . . Level 4 . | . . . . . . Level 5 . | . . . . . . High Security . | . . . . . . Max Security . | . . . . . . Peak Influence 217 | . 67 217 69 22 160 Initial 69 | . . 16 69 22 . Average 80 | . 26 118 65 7 93 Influence Increases 1130 | . 225 605 . . 300 Destroy 0b10 Robot/C 720 | . 140 400 . . 180 Destroy 0b10 Robot/NC 35 | . 10 25 . . . Destroy Leader 120 | . 42 68 . . 10 Disable Machine 15 | . 15 . . . . Anti-Garrison Action 50 | . . . . . 50 Destroy Structure 100 | . 18 82 . . . Lose Combat Pursuer 90 | . . 30 . . 60 Influence Decreases 970 | . 186 467 118 59 140 Entered New Map 168 | . . 23 108 37 . Time Decay 485 | . 176 277 10 22 . Lost Part 217 | . 10 67 . . 140 Purge Threat 100 | . . 100 . . . Squads Dispatched 5 | . 3 1 . 1 . Investigation 1 | . 1 . . . . Extermination . | . . . . . . Reinforcement 4 | . 2 1 . 1 . Assault . | . . . . . . Garrison . | . . . . . . Intercept . | . . . . . . Searches Triggered . | . . . . . . Construction Impeded . | . . . . . . Haulers Reinforced . | . . . . . . Active Scanning Responses . | . . . . . . Cargo Convoy Interrupts . | . . . . . . Stealth | -11 -10 -9 -9 -8 -8 --------- Run | Yrd Mat Mat Min Mat Gar Distress Signals 4 | . . 3 . 1 . Communications Jammed . | . . . . . . Distress Signals . | . . . . . . Times Spotted 64 | . 12 32 . . 20 Peak Tracking Total 7 | . 2 7 . . 6 Tactical Retreats 3 | . . 2 . . 1 Traps | -11 -10 -9 -9 -8 -8 ------- Run | Yrd Mat Mat Min Mat Gar Traps Triggered 1 | . . . . . 1 Indirectly . | . . . . . . Trap Hack Attempts . | . . . . . . Triggered . | . . . . . . Disarmed . | . . . . . . Reprogrammed . | . . . . . . Reused . | . . . . . . Traps Extracted . | . . . . . . Installed . | . . . . . . Triggered . | . . . . . . Machines | -11 -10 -9 -9 -8 -8 ---------- Run | Yrd Mat Mat Min Mat Gar Machines Disabled 2 | . 1 . . . 1 Max in Single Turn 1 | . 1 . . . 1 Garrison Relay 1 | . . . . . 1 Machines Repaired . | . . . . . . Machines Dismantled . | . . . . . . Machines Sabotaged . | . . . . . . Overloaded Fab Kills . | . . . . . . Hacking | -11 -10 -9 -9 -8 -8 --------- Run | Yrd Mat Mat Min Mat Gar Machines Accessed 6 | . 1 3 . 1 1 Terminals 5 | . 1 3 . . 1 Fabricators . | . . . . . . Repair Stations . | . . . . . . Recycling Units . | . . . . . . Scanalyzers . | . . . . . . Garrison Access 1 | . . . . 1 . Total Hacks 19 | . 5 11 . 2 1 Successful 6 | . 1 4 . 1 . Failed 13 | . 4 7 . 1 1 Catastrophic . | . . . . . . Database Lockouts . | . . . . . . Manual 3 | . 2 1 . . . Terminals 17 | . 5 11 . . 1 Fabricators . | . . . . . . Repair Stations . | . . . . . . Recycling Units . | . . . . . . Scanalyzers . | . . . . . . Garrison Access 2 | . . . . 2 . Terminal Hacks 5 | . 1 4 . . . Terminal Index 1 | . . 1 . . . Alert Level 2 | . . 2 . . . Unreport Threat 1 | . . 1 . . . Locate Traps 1 | . 1 . . . . Fabricator Hacks . | . . . . . . Repair Station Hacks . | . . . . . . Recycling Unit Hacks . | . . . . . . Scanalyzer . | . . . . . . Garrison Access Hacks 1 | . . . . 1 . Unlock Access 1 | . . . . 1 . Unauthorized Hacks . | . . . . . . Terminals . | . . . . . . Fabricators . | . . . . . . Repair Stations . | . . . . . . Recycling Units . | . . . . . . Scanalyzers . | . . . . . . Garrison Access . | . . . . . . Data Cores Recovered . | . . . . . . Used . | . . . . . . Hacking Detections 5 | . 1 2 . 1 1 Full Trace Events 2 | . 1 1 . . . Feedback Events . | . . . . . . Feedback Blocked . | . . . . . . Robot Schematics Acquired . | . . . . . . Robots Built . | . . . . . . Authchips . | . . . . . . Time . | . . . . . . Total Robot Build Rating . | . . . . . . Part Schematics Acquired . | . . . . . . Parts Built . | . . . . . . Authchips . | . . . . . . Time . | . . . . . . Total Part Build Rating . | . . . . . . Part Studies Acquired . | . . . . . . Parts Repaired . | . . . . . . Time . | . . . . . . Parts Recycled . | . . . . . . Recycled Matter . | . . . . . . Retrieved Matter . | . . . . . . Retrieved Components . | . . . . . . Parts Scanalyzed . | . . . . . . Part Schematics Acquired . | . . . . . . Parts Damaged . | . . . . . . Bothacking | -11 -10 -9 -9 -8 -8 ------------ Run | Yrd Mat Mat Min Mat Gar Used RIF Installer . | . . . . . . Robots Hacked . | . . . . . . Non-combat . | . . . . . . Combat . | . . . . . . Robot Hacks Applied . | . . . . . . Relay Couplers Released 5 | . . . . . 5 Machine Destruction 5 | . . . . . 5 Fabnet Peak Effective % . | . . . . . . Robots Rewired . | . . . . . . Allies Hacked . | . . . . . . Hacks Repelled . | . . . . . . Allies | -11 -10 -9 -9 -8 -8 -------- Run | Yrd Mat Mat Min Mat Gar Total Allies . | . . . . . . Largest Group . | . . . . . . Highest-Rated Group . | . . . . . . Highest-Rated Ally . | . . . . . . Total Orders . | . . . . . . Ally Attacks . | . . . . . . Total Damage . | . . . . . . Kills . | . . . . . . Allies Corrupted . | . . . . . . Allies Melted . | . . . . . . Intel | -11 -10 -9 -9 -8 -8 ------- Run | Yrd Mat Mat Min Mat Gar Active Infowar (turns) 1343 | . . 746 29 98 470 Optics 1338 | . . 741 29 98 470 Sensors 1103 | . . 746 29 98 230 Robot Analysis Total . | . . . . . . Derelict Logs Recovered . | . . . . . . Drone Launches . | . . . . . . Drone Recoveries . | . . . . . . Exploration | -11 -10 -9 -9 -8 -8 ------------- Run | Yrd Mat Mat Min Mat Gar Turns Passed 1862 | 64 403 746 29 98 522 Spaces Moved 968 | 47 239 348 19 51 264 Core 102 | 7 . . . . 95 Treads 340 | . . 103 19 51 167 Legs 526 | 40 239 245 . . 2 Wheels . | . . . . . . Hover . | . . . . . . Flight . | . . . . . . Fastest Speed 50 | 50 120 120 160 160 50 Average Speed 134 | 112 120 141 160 160 136 Slowest Speed 300 | 120 190 190 160 160 300 Overloaded Moves . | . . . . . . Propulsion Burnouts . | . . . . . . Robots Hopped . | . . . . . . Potential Cave-ins . | . . . . . . Cave-ins Triggered . | . . . . . . Exploration Rate (%) 22 | 4 42 37 11 4 39 Regions Visited 5 Branch Regions 1 Pre-discovered Areas . | . . . . . . Known Exits Taken 3 | . . 1 1 1 . Unknown Exits Taken 2 | 1 1 . . . . Scrap Searched . | . . . . . . Spaces Dug . | . . . . . . Terrain Destroyed 104 | . 15 89 . . . Melee . | . . . . . . Projectile . | . . . . . . AOE 104 | . 15 89 . . . Terrain Rammed . | . . . . . . Walls Destroyed . | . . . . . . Machines Disabled . | . . . . . . Actions | -11 -10 -9 -9 -8 -8 --------- Run | Yrd Mat Mat Min Mat Gar Total 1299 | 55 301 516 18 68 341 Wait 99 | . 16 68 . 9 6 Move 963 | 46 238 347 18 50 264 Hop . | . . . . . . Pick Up 25 | 3 8 12 . 2 . Fast Attach 21 | 6 3 4 . 3 5 Attach 14 | . 1 6 . 1 6 Detach 5 | . 2 2 . 1 . Swap 18 | . 1 15 . . 2 Drop 11 | . 4 5 . 2 . Fire 128 | . 27 54 . . 47 Melee . | . . . . . . Ram 3 | . . . . . 3 Kick 7 | . 1 . . . 6 Crush 5 | . . 3 . . 2 Escape Stasis . | . . . . . . Rewire . | . . . . . . Trap . | . . . . . . Miscellaneous . | . . . . . . Route ------- -11/Scrapyard -10/Materials -9/Materials -9/Mines -8/Materials -8/Garrison History --------- Turn | Location | Event 38 | -11/Scrapyard | Discovered new exit (range 15) 65 | -11/Scrapyard | Entered Materials 309 | -10/Materials | Build established: Mutant 380 | -10/Materials | Discovered new exit (range 5) 468 | -10/Materials | Entered another Materials area 468 | -9/Materials | Evolved 2 slots: Utility x2 801 | -9/Materials | Lost 4 parts (1p1n2w) 1188 | -9/Materials | Discovered new exit (range 17) 1212 | -9/Materials | Identified exit to Mines 1214 | -9/Materials | Entered Mines 1227 | -9/Mines | Discovered new exit (range 11) 1242 | -9/Mines | Identified exit to Materials 1243 | -9/Mines | Entered Materials 1243 | -8/Materials | Evolved 2 slots: Power x1, Weapon x1 1337 | -8/Materials | Identified exit to Garrison 1341 | -8/Materials | Entered Garrison 1395 | -8/Garrison | Triggered checkpoint 1434 | -8/Garrison | Garrison Relay disabled 1541 | -8/Garrison | Build established: Scavenger-Skirmisher 1549 | -8/Garrison | Triggered checkpoint 1625 | -8/Garrison | Lost 8 parts (2p2n1u3w) 1749 | -8/Garrison | Core integrity fell below 50% 1811 | -8/Garrison | Released all parts (7) 1830 | -8/Garrison | Lost 5 parts (2p1n1u1w) 1845 | -8/Garrison | Triggered checkpoint 1853 | -8/Garrison | Triggered checkpoint 1855 | -8/Garrison | Core integrity fell below 20% 1863 | -8/Garrison | Self-destructed Last Messages --------------- G-47 Trooper suffers critical hit (Burn). Kicked G-47 Trooper. Kicked G-47 Trooper out of the way. Acquired 14 matter. Kicked G-47 Trooper out of the way. Released Carbon-fiber Leg. Released Med. Storage Unit. Released Visual Processing Unit. Released Signal Interpreter. Released Particle Gun. Released Carbon-fiber Leg. Released Shield Generator. Triggered Alarm Trap. An alarm sounds. Beams of light sweep through the air. An alarm sounds. Slammed into S-10 Pest. Extracted 1 energy. Extracted 16 energy. Extracted 1 energy. Map ----- +----------------------------------------------------+ | ????????????????????????????????? | | ????????????????????????????????? | | ????????????????????????????????? | | ????????????????????????????????? | | ????????????????????????????????? | | ????????????????????????????????? | | ????????????????????????????????? | | ????????????????????????????????? | | ????????????????????????????????? | | ###########?????????????????????? | | ^ ????????????????????? | | ????????????????????? | | ????????????????????? | | ##### #####?????????????????????? | | ????????????????????????????????? | | ????????????????????????????????? | | ????????????????????????????????? | | ????????????????????????????????? | | ????????????????????????????????? | | ????????????????????????????????? | | ????????????????????????????????? | | ????????????????????????????????? | | ??????????????????????#####?????? | | #######################!!!#?????? | | %% sss!#?????? | | ## #####"""##### ##!!@#?????? | | ?# #???????????# ######?????? | | ?##+##???????????#####??????????? | | ??# #???????????????????????????? | | ??# #???????????????????????????? | | ??# #???????????????????????????? | | ?? #???????????????????????????? | | ??# #???????????????????????????? | | ?? ???????????????????????????? | | ?? ???????????????????????????? | | ?? ???????????????????????????? | | ??###???????????????????????????? | | ????????????????????????????????? | | ????????????????????????????????? | | ????????????????????????????????? | | ????????????????????????????????? | | ????????????????????????????????? | | | | | | | | | | | | | | | | | +----------------------------------------------------+ Best States ------------- Heat Dissipation 45 Energy Generation 21 Energy Capacity 325 Matter Stores 300 Matter Capacity 300 Sight Range 18 Robot Scan Range 14 Terrain Scan Density 10 Evasion (%) 55 Recoil Reduction 2 Item Schematics ----------------- None Robot Schematics ------------------ None Fabricated ------------ Nothing Repaired ---------- Nothing Studied --------- None Alien Tech Used ----------------- None Achievements -------------- None Challenges ------------ None Game ------ Seed ColdWeaponDatajack Manual? 0 Play Time 00:26:04 Cumulative 16.8 hours Start 2026.02.28 @ 20:40:37 End 2026.02.28 @ 21:06:45 Sessions 1 Manual Loads 0 Difficulty Rogue Special Mode None Game No. 23 Rogue 23 Adventurer 0 Explorer 0 Win Type - Total 0 Types 0/0/0/0/0/0/0/0/0/0 Lore% 3 Gallery% 17 Achievement% 14 Wizard Run 0 Options --------- Layout 1 ASCII 0 Keyboard 1 Movement Arrows Keybinds 0 Fullscreen 1 Font 24/Smallcaps Map View 50x35 Zoom Use 0% Tactical HUD 0 Map Filters NONE Filters NONE Steam 1 RUN: c93a0a7b-643c-4a5a-9d53-a368e465cdc0